[Event "Late-Titled-Tuesday-Blitz-May-07-2024"]
[Site "Chess.com"]
[Date "2024.05.07"]
[Round "8"]
[White "Assumpcaos"]
[Black "Ajedrez_con_German"]
[Result "1-0"]
[WhiteElo "2231"]
[BlackElo "2561"]
[TimeControl "180+1"]
[EndTime "15:28:22 PDT"]
[Termination "Assumpcaos won on time"]

1. d4 {[%clk 0:03:00.9]} 1... d5 {[%clk 0:02:59.4]} 2. c4 {[%clk 0:03:00.6]}
2... e6 {[%clk 0:03:00]} 3. Nc3 {[%clk 0:03:00.5]} 3... Nf6 {[%clk 0:03:00.5]}
4. cxd5 {[%clk 0:03:00.6]} 4... Nxd5 {[%clk 0:03:01]} 5. e4 {[%clk 0:02:59.3]}
5... Nxc3 {[%clk 0:03:01.4]} 6. bxc3 {[%clk 0:02:59.3]} 6... c5 {[%clk
0:03:02.1]} 7. Rb1 {[%clk 0:02:58.7]} 7... Be7 {[%clk 0:02:59.8]} 8. Nf3 {[%clk
0:02:58.1]} 8... O-O {[%clk 0:02:59.5]} 9. Be2 {[%clk 0:02:56.5]} 9... b6 {[%clk
0:02:58.4]} 10. O-O {[%clk 0:02:55.9]} 10... Ba6 {[%clk 0:02:57.7]} 11. Be3
{[%clk 0:02:51.5]} 11... Bxe2 {[%clk 0:02:56.4]} 12. Qxe2 {[%clk 0:02:51.7]}
12... cxd4 {[%clk 0:02:56.7]} 13. cxd4 {[%clk 0:02:51.1]} 13... Nc6 {[%clk
0:02:56.5]} 14. Rfd1 {[%clk 0:02:50.6]} 14... Na5 {[%clk 0:02:55.9]} 15. d5
{[%clk 0:02:49.7]} 15... exd5 {[%clk 0:02:56.2]} 16. exd5 {[%clk 0:02:50]} 16...
Bf6 {[%clk 0:02:55.7]} 17. Rbc1 {[%clk 0:02:39.9]} 17... Re8 {[%clk 0:02:52.2]}
18. Qd3 {[%clk 0:02:38.3]} 18... Qd7 {[%clk 0:02:40.7]} 19. d6 {[%clk
0:02:31.7]} 19... Rac8 {[%clk 0:02:28.9]} 20. Bf4 {[%clk 0:02:13.1]} 20... h6
{[%clk 0:02:24]} 21. h3 {[%clk 0:02:10.1]} 21... Nc6 {[%clk 0:02:10.9]} 22. Qb5
{[%clk 0:01:42]} 22... Re4 {[%clk 0:02:03.7]} 23. Bg3 {[%clk 0:01:30.2]} 23...
Rb4 {[%clk 0:02:03.4]} 24. Qa6 {[%clk 0:01:23.2]} 24... Rd8 {[%clk 0:01:56.8]}
25. a3 {[%clk 0:01:19.7]} 25... Rb3 {[%clk 0:01:13.9]} 26. Qa4 {[%clk
0:01:18.6]} 26... Na5 {[%clk 0:01:12.8]} 27. Qxd7 {[%clk 0:01:14.5]} 27... Rxd7
{[%clk 0:01:13.4]} 28. Rc7 {[%clk 0:01:10.5]} 28... Rd8 {[%clk 0:01:11]} 29. a4
{[%clk 0:00:35]} 1-0

[Event "Late-Titled-Tuesday-Blitz-May-07-2024"]
[Site "Chess.com"]
[Date "2024.05.07"]
[Round "8"]
[White "carlsenCamacho"]
[Black "Vincefm"]
[Result "0-1"]
[WhiteElo "2325"]
[BlackElo "2499"]
[TimeControl "180+1"]
[EndTime "15:28:30 PDT"]
[Termination "Vincefm won by resignation"]

1. e4 {[%clk 0:02:59.3]} 1... e5 {[%clk 0:02:58.9]} 2. Nf3 {[%clk 0:02:59.8]}
2... Nc6 {[%clk 0:02:58.9]} 3. Bc4 {[%clk 0:03:00.4]} 3... Nf6 {[%clk 0:02:59]}
4. Nc3 {[%clk 0:02:57.5]} 4... Nxe4 {[%clk 0:02:57.3]} 5. Nxe4 {[%clk
0:02:56.4]} 5... d5 {[%clk 0:02:57.1]} 6. Bd3 {[%clk 0:02:57.1]} 6... Nb4 {[%clk
0:02:46.3]} 7. Nxe5 {[%clk 0:02:33.5]} 7... dxe4 {[%clk 0:02:35.3]} 8. Bxe4
{[%clk 0:02:32.6]} 8... Qe7 {[%clk 0:02:33.7]} 9. d4 {[%clk 0:02:30.1]} 9... f6
{[%clk 0:02:32.4]} 10. Qh5+ {[%clk 0:02:29.3]} 10... g6 {[%clk 0:02:24.4]} 11.
Bxg6+ {[%clk 0:02:28.1]} 11... hxg6 {[%clk 0:02:23.4]} 12. Qxh8 {[%clk
0:02:25.3]} 12... fxe5 {[%clk 0:02:22.8]} 13. O-O {[%clk 0:02:25.4]} 13... Nxc2
{[%clk 0:02:12.6]} 14. Bh6 {[%clk 0:02:19.9]} 14... Nxa1 {[%clk 0:01:31.6]} 15.
Re1 {[%clk 0:02:19.3]} 15... Be6 {[%clk 0:01:31.7]} 16. Bxf8 {[%clk 0:02:15.3]}
16... Qxf8 {[%clk 0:01:13.9]} 17. Qxe5 {[%clk 0:02:11.6]} 17... Qf5 {[%clk
0:00:32.5]} 18. Qh8+ {[%clk 0:01:44.5]} 18... Kd7 {[%clk 0:00:31.1]} 19. Qxa8
{[%clk 0:01:43.3]} 19... Nc2 {[%clk 0:00:30.8]} 20. Rd1 {[%clk 0:01:24.2]} 20...
Qg4 {[%clk 0:00:15.1]} 21. f3 {[%clk 0:01:21]} 21... Qg5 {[%clk 0:00:15.5]} 22.
Qxa7 {[%clk 0:01:14.7]} 22... Ne3 {[%clk 0:00:15.4]} 23. Qa4+ {[%clk 0:01:05]}
23... c6 {[%clk 0:00:14.3]} 24. Rd2 {[%clk 0:01:02.6]} 24... Nc4 {[%clk
0:00:11.2]} 25. Re2 {[%clk 0:00:56.8]} 25... Qc1+ {[%clk 0:00:11]} 26. Kf2
{[%clk 0:00:56.7]} 26... Nxb2 {[%clk 0:00:09.6]} 27. Qa5 {[%clk 0:00:41.9]}
27... Nd1+ {[%clk 0:00:09.5]} 28. Kg3 {[%clk 0:00:41]} 28... Nc3 {[%clk
0:00:05]} 29. Qc5 {[%clk 0:00:29.9]} 29... Nxe2+ {[%clk 0:00:04.1]} 30. Kf2
{[%clk 0:00:24.7]} 30... Qxc5 {[%clk 0:00:05]} 31. dxc5 {[%clk 0:00:25.1]} 31...
Nc3 {[%clk 0:00:05.5]} 0-1

[Event "Late-Titled-Tuesday-Blitz-May-07-2024"]
[Site "Chess.com"]
[Date "2024.05.07"]
[Round "8"]
[White "ChadBiryani"]
[Black "GMRafpig"]
[Result "0-1"]
[WhiteElo "2552"]
[BlackElo "2738"]
[TimeControl "180+1"]
[EndTime "15:28:32 PDT"]
[Termination "GMRafpig won by checkmate"]

1. c4 {[%clk 0:03:00.9]} 1... Nf6 {[%clk 0:02:59]} 2. g3 {[%clk 0:03:01.3]} 2...
e6 {[%clk 0:02:59.1]} 3. Bg2 {[%clk 0:03:01.7]} 3... d5 {[%clk 0:02:59.8]} 4.
Nf3 {[%clk 0:03:00.7]} 4... Be7 {[%clk 0:02:58.5]} 5. O-O {[%clk 0:03:01]} 5...
O-O {[%clk 0:02:59.3]} 6. b3 {[%clk 0:03:01.3]} 6... d4 {[%clk 0:02:56.7]} 7. e3
{[%clk 0:02:57]} 7... c5 {[%clk 0:02:56.3]} 8. Bb2 {[%clk 0:02:56.1]} 8... Nc6
{[%clk 0:02:55.7]} 9. d3 {[%clk 0:02:54.7]} 9... e5 {[%clk 0:02:51.1]} 10. Re1
{[%clk 0:02:51.4]} 10... Bg4 {[%clk 0:02:35.4]} 11. h3 {[%clk 0:02:46.6]} 11...
Bh5 {[%clk 0:02:33.4]} 12. g4 {[%clk 0:02:39.9]} 12... Bg6 {[%clk 0:02:32.9]}
13. e4 {[%clk 0:02:23.7]} 13... h5 {[%clk 0:02:24.5]} 14. Nh4 {[%clk 0:02:17.7]}
14... hxg4 {[%clk 0:02:11.3]} 15. Nxg6 {[%clk 0:02:17]} 15... fxg6 {[%clk
0:02:11.2]} 16. hxg4 {[%clk 0:02:16.4]} 16... Qd7 {[%clk 0:02:04]} 17. Bh3
{[%clk 0:02:15.6]} 17... Nh7 {[%clk 0:02:01.9]} 18. Nd2 {[%clk 0:02:10.9]} 18...
Ng5 {[%clk 0:01:53.3]} 19. Bg2 {[%clk 0:02:09.9]} 19... Ne6 {[%clk 0:01:48.9]}
20. Nf1 {[%clk 0:02:07.4]} 20... Bh4 {[%clk 0:01:45.2]} 21. Ng3 {[%clk
0:01:56.7]} 21... Rf6 {[%clk 0:01:33.9]} 22. Bc1 {[%clk 0:01:32.3]} 22... Raf8
{[%clk 0:01:33.5]} 23. Rf1 {[%clk 0:01:32.4]} 23... Qf7 {[%clk 0:01:12.6]} 24.
Qe1 {[%clk 0:01:16.9]} 24... Nf4 {[%clk 0:01:05.7]} 25. Bxf4 {[%clk 0:01:15.7]}
25... exf4 {[%clk 0:01:05.5]} 26. Nh1 {[%clk 0:01:13.9]} 26... Ne5 {[%clk
0:01:05.1]} 27. Qd1 {[%clk 0:01:08.5]} 27... f3 {[%clk 0:00:51.4]} 28. Bh3
{[%clk 0:01:06.2]} 28... g5 {[%clk 0:00:46.7]} 29. a3 {[%clk 0:00:53.9]} 29...
Rh6 {[%clk 0:00:46.9]} 30. b4 {[%clk 0:00:41.6]} 30... Ng6 {[%clk 0:00:47.2]}
31. Re1 {[%clk 0:00:33.8]} 31... Qf4 {[%clk 0:00:31.8]} 32. Qc1 {[%clk
0:00:26.6]} 32... Bxf2+ {[%clk 0:00:31.5]} 33. Nxf2 {[%clk 0:00:15.6]} 33...
Qg3+ {[%clk 0:00:31.7]} 34. Kf1 {[%clk 0:00:15.9]} 34... Rxh3 {[%clk 0:00:32]}
35. Rd1 {[%clk 0:00:10]} 35... Qg2+ {[%clk 0:00:31.6]} 36. Ke1 {[%clk
0:00:10.3]} 36... Qg1+ {[%clk 0:00:32.3]} 37. Kd2 {[%clk 0:00:09.6]} 37... Qxf2#
{[%clk 0:00:32.8]} 0-1

[Event "Late-Titled-Tuesday-Blitz-May-07-2024"]
[Site "Chess.com"]
[Date "2024.05.07"]
[Round "8"]
[White "ab-lsv"]
[Black "boguszp"]
[Result "1-0"]
[WhiteElo "2375"]
[BlackElo "2053"]
[TimeControl "180+1"]
[EndTime "15:28:34 PDT"]
[Termination "ab-lsv won on time"]

1. d4 {[%clk 0:02:59.6]} 1... d5 {[%clk 0:02:58.3]} 2. c4 {[%clk 0:02:59.8]}
2... c6 {[%clk 0:02:57.6]} 3. Nc3 {[%clk 0:03:00]} 3... Nf6 {[%clk 0:02:57.5]}
4. e3 {[%clk 0:03:00.4]} 4... e6 {[%clk 0:02:56.5]} 5. Nf3 {[%clk 0:03:00.3]}
5... Nbd7 {[%clk 0:02:54.9]} 6. Be2 {[%clk 0:03:00.6]} 6... dxc4 {[%clk
0:02:49.8]} 7. a4 {[%clk 0:03:00.6]} 7... a6 {[%clk 0:02:43.9]} 8. Bxc4 {[%clk
0:02:55.3]} 8... Bb4 {[%clk 0:02:32.6]} 9. O-O {[%clk 0:02:54.2]} 9... O-O
{[%clk 0:02:30.1]} 10. Qc2 {[%clk 0:02:49]} 10... Nb6 {[%clk 0:02:24.3]} 11. Bd3
{[%clk 0:02:45.5]} 11... h6 {[%clk 0:02:18.1]} 12. Rd1 {[%clk 0:02:42.8]} 12...
Qe7 {[%clk 0:02:15.3]} 13. e4 {[%clk 0:02:31.2]} 13... Rd8 {[%clk 0:02:13.3]}
14. Be3 {[%clk 0:02:13.6]} 14... Nbd7 {[%clk 0:01:52.2]} 15. e5 {[%clk
0:01:54.9]} 15... Nd5 {[%clk 0:01:50]} 16. Ne4 {[%clk 0:01:53.6]} 16... Nxe3
{[%clk 0:01:27.7]} 17. fxe3 {[%clk 0:01:52.9]} 17... Nb6 {[%clk 0:01:28.3]} 18.
Rf1 {[%clk 0:01:43.2]} 18... Nd5 {[%clk 0:01:27.9]} 19. Qf2 {[%clk 0:01:33.8]}
19... c5 {[%clk 0:01:20]} 20. Rad1 {[%clk 0:01:30.1]} 20... b6 {[%clk
0:00:58.3]} 21. h3 {[%clk 0:01:10.3]} 21... Bb7 {[%clk 0:00:56.6]} 22. Nh2
{[%clk 0:01:10.2]} 22... Nxe3 {[%clk 0:00:37.1]} 23. Qxe3 {[%clk 0:01:07.7]}
23... cxd4 {[%clk 0:00:37.4]} 24. Qf4 {[%clk 0:01:03.9]} 24... Rac8 {[%clk
0:00:29.8]} 25. Ng4 {[%clk 0:01:03.3]} 25... Bxe4 {[%clk 0:00:22.6]} 26. Qxe4
{[%clk 0:01:01.9]} 26... Qg5 {[%clk 0:00:13.6]} 27. h4 {[%clk 0:00:36.7]} 27...
Qg6 {[%clk 0:00:03.2]} 28. Qf3 {[%clk 0:00:29.9]} 1-0

[Event "Late-Titled-Tuesday-Blitz-May-07-2024"]
[Site "Chess.com"]
[Date "2024.05.07"]
[Round "8"]
[White "picturesquecheck"]
[Black "vladgoncharov"]
[Result "1-0"]
[WhiteElo "2463"]
[BlackElo "2576"]
[TimeControl "180+1"]
[EndTime "15:28:39 PDT"]
[Termination "picturesquecheck won on time"]

1. e4 {[%clk 0:03:00.9]} 1... e6 {[%clk 0:02:59]} 2. b3 {[%clk 0:02:54.5]} 2...
d5 {[%clk 0:02:59]} 3. Bb2 {[%clk 0:02:48.3]} 3... Nf6 {[%clk 0:02:58.4]} 4. e5
{[%clk 0:02:47.6]} 4... Nfd7 {[%clk 0:02:58]} 5. d4 {[%clk 0:02:48.5]} 5... c5
{[%clk 0:02:57.8]} 6. Nd2 {[%clk 0:02:48.8]} 6... cxd4 {[%clk 0:02:57.3]} 7.
Ngf3 {[%clk 0:02:48.9]} 7... Nc6 {[%clk 0:02:56.9]} 8. Bb5 {[%clk 0:02:46.7]}
8... Qc7 {[%clk 0:02:48]} 9. Bxc6 {[%clk 0:02:43.6]} 9... bxc6 {[%clk
0:02:45.8]} 10. O-O {[%clk 0:02:40.5]} 10... Ba6 {[%clk 0:02:42.1]} 11. Re1
{[%clk 0:02:40.3]} 11... c5 {[%clk 0:02:35.3]} 12. b4 {[%clk 0:02:38.5]} 12...
Rb8 {[%clk 0:02:26.2]} 13. a3 {[%clk 0:02:36.5]} 13... Be7 {[%clk 0:02:20.4]}
14. Nb3 {[%clk 0:02:36.1]} 14... O-O {[%clk 0:02:09.3]} 15. bxc5 {[%clk
0:02:35.3]} 15... Nxc5 {[%clk 0:02:08.9]} 16. Bxd4 {[%clk 0:02:34]} 16... Rfc8
{[%clk 0:02:02.5]} 17. Bxc5 {[%clk 0:02:26.8]} 17... Bxc5 {[%clk 0:02:01.9]} 18.
Ng5 {[%clk 0:02:26.6]} 18... Be7 {[%clk 0:01:52.1]} 19. Qh5 {[%clk 0:02:24.8]}
19... Bxg5 {[%clk 0:01:51.1]} 20. Qxg5 {[%clk 0:02:25.2]} 20... Qxc2 {[%clk
0:01:49.4]} 21. Nd4 {[%clk 0:02:24.1]} 21... Qg6 {[%clk 0:01:46.8]} 22. Qe7
{[%clk 0:02:20.6]} 22... Ra8 {[%clk 0:01:38.1]} 23. Rac1 {[%clk 0:02:16.2]}
23... Re8 {[%clk 0:01:35.1]} 24. Qd6 {[%clk 0:02:15.1]} 24... Bc4 {[%clk
0:01:34.9]} 25. Nc6 {[%clk 0:02:09.6]} 25... Qd3 {[%clk 0:01:32.4]} 26. g3
{[%clk 0:02:06.3]} 26... h5 {[%clk 0:01:28.1]} 27. Red1 {[%clk 0:02:01.3]} 27...
Qf3 {[%clk 0:01:23]} 28. h4 {[%clk 0:01:58.2]} 28... a5 {[%clk 0:01:17]} 29. Re1
{[%clk 0:01:57.7]} 29... a4 {[%clk 0:01:14.2]} 30. Re3 {[%clk 0:01:57]} 30...
Qg4 {[%clk 0:01:13.9]} 31. Rd1 {[%clk 0:01:54.4]} 31... Kh7 {[%clk 0:01:06.4]}
32. Rd4 {[%clk 0:01:51.9]} 32... Qg6 {[%clk 0:01:05.9]} 33. Qb4 {[%clk
0:01:39.9]} 33... Qc2 {[%clk 0:00:49.9]} 34. Rf4 {[%clk 0:01:33.7]} 34... Bb3
{[%clk 0:00:28.2]} 35. Nd4 {[%clk 0:01:25.6]} 35... Qc7 {[%clk 0:00:23.6]} 36.
Qd2 {[%clk 0:01:20.1]} 36... g6 {[%clk 0:00:20.4]} 37. Nf3 {[%clk 0:01:20.1]}
37... Re7 {[%clk 0:00:18.3]} 38. Ng5+ {[%clk 0:01:18.1]} 38... Kg7 {[%clk
0:00:18.5]} 39. Ref3 {[%clk 0:01:18.5]} 39... Rf8 {[%clk 0:00:17.4]} 40. Qd4
{[%clk 0:01:17.6]} 40... Qc1+ {[%clk 0:00:16.6]} 41. Kh2 {[%clk 0:01:16.8]}
41... Bc2 {[%clk 0:00:16.7]} 42. Qc5 {[%clk 0:01:02.7]} 42... Rfe8 {[%clk
0:00:06.3]} 43. Rxf7+ {[%clk 0:01:01.5]} 43... Rxf7 {[%clk 0:00:06.6]} 44. Rxf7+
{[%clk 0:01:02.4]} 44... Kg8 {[%clk 0:00:07.4]} 45. Qc7 {[%clk 0:00:53.7]} 1-0

[Event "Late-Titled-Tuesday-Blitz-May-07-2024"]
[Site "Chess.com"]
[Date "2024.05.07"]
[Round "8"]
[White "ploxoi"]
[Black "Navyblue1"]
[Result "1-0"]
[WhiteElo "2333"]
[BlackElo "2220"]
[TimeControl "180+1"]
[EndTime "15:28:42 PDT"]
[Termination "ploxoi won by resignation"]

1. d4 {[%clk 0:03:00.9]} 1... Nf6 {[%clk 0:02:59.2]} 2. c4 {[%clk 0:02:59.2]}
2... g6 {[%clk 0:02:58.9]} 3. g3 {[%clk 0:02:57.3]} 3... Bg7 {[%clk 0:02:58.8]}
4. Bg2 {[%clk 0:02:52.2]} 4... d6 {[%clk 0:02:58.2]} 5. Nf3 {[%clk 0:02:52.5]}
5... O-O {[%clk 0:02:58.5]} 6. O-O {[%clk 0:02:51.8]} 6... c6 {[%clk 0:02:58.9]}
7. Nc3 {[%clk 0:02:51.6]} 7... Qb6 {[%clk 0:02:59.1]} 8. Qc2 {[%clk 0:02:48.5]}
8... Qa6 {[%clk 0:02:55.1]} 9. Nd2 {[%clk 0:02:44]} 9... Nbd7 {[%clk 0:02:52.1]}
10. e4 {[%clk 0:02:41.7]} 10... e5 {[%clk 0:02:52.2]} 11. Ne2 {[%clk 0:02:25.8]}
11... exd4 {[%clk 0:02:46.1]} 12. Nxd4 {[%clk 0:02:26.7]} 12... Re8 {[%clk
0:02:35.8]} 13. N2b3 {[%clk 0:02:25.8]} 13... Ne5 {[%clk 0:02:25.9]} 14. c5
{[%clk 0:02:21.1]} 14... dxc5 {[%clk 0:02:15.6]} 15. Nxc5 {[%clk 0:02:13.8]}
15... Qc4 {[%clk 0:02:12.8]} 16. Be3 {[%clk 0:01:50.2]} 16... Nfg4 {[%clk
0:01:54]} 17. Rad1 {[%clk 0:01:24.4]} 17... Nxe3 {[%clk 0:01:49.3]} 18. fxe3
{[%clk 0:01:25.3]} 18... Qxc2 {[%clk 0:01:42.6]} 19. Nxc2 {[%clk 0:01:26.2]}
19... Bg4 {[%clk 0:01:36.9]} 20. Rd2 {[%clk 0:01:16.1]} 20... b6 {[%clk
0:01:34]} 21. Nb3 {[%clk 0:01:13.3]} 21... Nc4 {[%clk 0:01:31.8]} 22. Rdf2
{[%clk 0:01:13.6]} 22... Be6 {[%clk 0:01:24.1]} 23. Nbd4 {[%clk 0:01:12.5]}
23... Nxe3 {[%clk 0:00:57.8]} 24. Nxe6 {[%clk 0:01:04.8]} 24... Nxf1 {[%clk
0:00:57.4]} 25. Nc7 {[%clk 0:00:59.7]} 25... Nxh2 {[%clk 0:00:31.3]} 26. Kxh2
{[%clk 0:00:54.7]} 26... Rad8 {[%clk 0:00:27.5]} 27. Nxe8 {[%clk 0:00:54.4]}
27... Rxe8 {[%clk 0:00:28.4]} 28. Rd2 {[%clk 0:00:52.2]} 28... c5 {[%clk
0:00:26.4]} 29. b3 {[%clk 0:00:51.5]} 29... Re7 {[%clk 0:00:24.9]} 30. Ne3
{[%clk 0:00:49.9]} 30... Bd4 {[%clk 0:00:25.1]} 31. Nd5 {[%clk 0:00:49.8]} 31...
Re6 {[%clk 0:00:22.8]} 32. Bf3 {[%clk 0:00:40]} 32... Kg7 {[%clk 0:00:20.7]} 33.
Kg2 {[%clk 0:00:39.6]} 33... h5 {[%clk 0:00:21.1]} 34. Nf4 {[%clk 0:00:38.5]}
34... Re5 {[%clk 0:00:20.3]} 35. Ne2 {[%clk 0:00:35.5]} 35... Be3 {[%clk
0:00:18.9]} 36. Rd3 {[%clk 0:00:35.4]} 36... Bg5 {[%clk 0:00:18.2]} 37. Rd7
{[%clk 0:00:35.1]} 37... a5 {[%clk 0:00:17.7]} 38. Nc3 {[%clk 0:00:34.6]} 38...
Bd2 {[%clk 0:00:15.8]} 39. Nd5 {[%clk 0:00:34.1]} 39... Bg5 {[%clk 0:00:13.8]}
40. Nxb6 {[%clk 0:00:33.1]} 40... Re6 {[%clk 0:00:13.6]} 41. Nc4 {[%clk
0:00:33]} 41... Ra6 {[%clk 0:00:13.3]} 42. Ne5 {[%clk 0:00:31.8]} 1-0

[Event "Late-Titled-Tuesday-Blitz-May-07-2024"]
[Site "Chess.com"]
[Date "2024.05.07"]
[Round "8"]
[White "Arek_pacitan"]
[Black "vugarrasulov"]
[Result "0-1"]
[WhiteElo "2758"]
[BlackElo "2995"]
[TimeControl "180+1"]
[EndTime "15:28:43 PDT"]
[Termination "vugarrasulov won by resignation"]

1. d4 {[%clk 0:03:00.9]} 1... Nf6 {[%clk 0:02:59.8]} 2. c4 {[%clk 0:02:58]} 2...
e6 {[%clk 0:03:00.1]} 3. Nc3 {[%clk 0:02:57.5]} 3... Bb4 {[%clk 0:02:59.1]} 4.
Qc2 {[%clk 0:02:57.8]} 4... h6 {[%clk 0:02:55.4]} 5. e3 {[%clk 0:02:55.4]} 5...
d5 {[%clk 0:02:53.8]} 6. Nf3 {[%clk 0:02:55.3]} 6... O-O {[%clk 0:02:53.5]} 7.
Bd2 {[%clk 0:02:55.6]} 7... b6 {[%clk 0:02:53.5]} 8. a3 {[%clk 0:02:55.1]} 8...
Bd6 {[%clk 0:02:48.1]} 9. Nb5 {[%clk 0:02:50.4]} 9... c5 {[%clk 0:02:35]} 10.
cxd5 {[%clk 0:02:45.4]} 10... exd5 {[%clk 0:02:33.2]} 11. Nxd6 {[%clk
0:02:45.1]} 11... Qxd6 {[%clk 0:02:34.1]} 12. Bd3 {[%clk 0:02:41.3]} 12... Nc6
{[%clk 0:02:32.9]} 13. dxc5 {[%clk 0:02:34.6]} 13... bxc5 {[%clk 0:02:33.8]} 14.
Rc1 {[%clk 0:02:35.2]} 14... c4 {[%clk 0:02:32.8]} 15. Bf5 {[%clk 0:02:31.9]}
15... Bxf5 {[%clk 0:02:25.9]} 16. Qxf5 {[%clk 0:02:32.8]} 16... Ne4 {[%clk
0:02:26.1]} 17. O-O {[%clk 0:02:25.9]} 17... Rab8 {[%clk 0:02:24.3]} 18. Rc2
{[%clk 0:02:24.1]} 18... Qe6 {[%clk 0:02:20.6]} 19. Qh5 {[%clk 0:02:13.8]} 19...
Rb3 {[%clk 0:02:19.1]} 20. Rd1 {[%clk 0:01:57.6]} 20... f5 {[%clk 0:02:11.8]}
21. Bc1 {[%clk 0:01:50.9]} 21... Rd8 {[%clk 0:02:02.6]} 22. Nh4 {[%clk
0:01:47.6]} 22... Rd3 {[%clk 0:01:53.5]} 23. Re1 {[%clk 0:01:46]} 23... Rf8
{[%clk 0:01:52.3]} 24. Qe2 {[%clk 0:01:24.8]} 24... f4 {[%clk 0:01:46.5]} 25.
Nf3 {[%clk 0:01:16.2]} 25... fxe3 {[%clk 0:01:46.5]} 26. Bxe3 {[%clk 0:01:15.3]}
26... Qg6 {[%clk 0:01:41]} 27. Rd1 {[%clk 0:01:01.7]} 27... Nd6 {[%clk
0:01:22.2]} 28. Rcd2 {[%clk 0:00:56.8]} 28... Rxd2 {[%clk 0:01:16.4]} 29. Qxd2
{[%clk 0:00:53.5]} 29... Ne7 {[%clk 0:01:09.2]} 30. Ne5 {[%clk 0:00:42.8]} 30...
Qe6 {[%clk 0:01:05.2]} 31. Bd4 {[%clk 0:00:38.3]} 31... Ndf5 {[%clk 0:00:56.6]}
32. Bc3 {[%clk 0:00:35.1]} 32... Rd8 {[%clk 0:00:53.8]} 33. Nf3 {[%clk
0:00:31.4]} 33... Nc6 {[%clk 0:00:52.2]} 34. Re1 {[%clk 0:00:31.1]} 34... Qf7
{[%clk 0:00:52.4]} 35. Ne5 {[%clk 0:00:30.1]} 35... Nxe5 {[%clk 0:00:52.5]} 36.
Bxe5 {[%clk 0:00:31]} 36... d4 {[%clk 0:00:51.9]} 37. Qa5 {[%clk 0:00:19.7]}
37... Qd5 {[%clk 0:00:46.4]} 38. Qxa7 {[%clk 0:00:16.8]} 38... d3 {[%clk
0:00:46.2]} 39. g4 {[%clk 0:00:15.4]} 39... d2 {[%clk 0:00:40.7]} 40. Rd1 {[%clk
0:00:15.9]} 40... Qxe5 {[%clk 0:00:40.7]} 41. gxf5 {[%clk 0:00:16.1]} 41... Qe1+
{[%clk 0:00:40.8]} 42. Kg2 {[%clk 0:00:12]} 42... Qxd1 {[%clk 0:00:41.7]} 0-1

[Event "Late-Titled-Tuesday-Blitz-May-07-2024"]
[Site "Chess.com"]
[Date "2024.05.07"]
[Round "8"]
[White "MiguelBestard1981"]
[Black "Arteler"]
[Result "1-0"]
[WhiteElo "2192"]
[BlackElo "2257"]
[TimeControl "180+1"]
[EndTime "15:28:43 PDT"]
[Termination "MiguelBestard1981 won on time"]

1. d4 {[%clk 0:03:00.9]} 1... d5 {[%clk 0:02:55.4]} 2. Bf4 {[%clk 0:02:59.5]}
2... e6 {[%clk 0:02:55.5]} 3. e3 {[%clk 0:02:59.3]} 3... c5 {[%clk 0:02:55.5]}
4. c3 {[%clk 0:02:59.4]} 4... Nf6 {[%clk 0:02:54.6]} 5. Nd2 {[%clk 0:02:59.1]}
5... cxd4 {[%clk 0:02:55]} 6. exd4 {[%clk 0:02:58.3]} 6... Nc6 {[%clk
0:02:54.2]} 7. Bd3 {[%clk 0:02:56.5]} 7... Bd6 {[%clk 0:02:54.7]} 8. Bxd6 {[%clk
0:02:55.9]} 8... Qxd6 {[%clk 0:02:55.6]} 9. Ngf3 {[%clk 0:02:55.5]} 9... O-O
{[%clk 0:02:55.6]} 10. O-O {[%clk 0:02:55.5]} 10... a6 {[%clk 0:02:51]} 11. Re1
{[%clk 0:02:55.3]} 11... b5 {[%clk 0:02:50.9]} 12. a3 {[%clk 0:02:54.2]} 12...
Bb7 {[%clk 0:02:50.3]} 13. Ne5 {[%clk 0:02:53.8]} 13... Nd7 {[%clk 0:02:37.2]}
14. Qh5 {[%clk 0:02:50.1]} 14... h6 {[%clk 0:02:34.9]} 15. Re3 {[%clk
0:02:46.3]} 15... Ndxe5 {[%clk 0:02:27.7]} 16. dxe5 {[%clk 0:02:45.4]} 16... Qc7
{[%clk 0:02:13.5]} 17. Rae1 {[%clk 0:02:43.8]} 17... Ne7 {[%clk 0:02:04.9]} 18.
Rg3 {[%clk 0:02:37.3]} 18... Kh8 {[%clk 0:01:59.6]} 19. Ree3 {[%clk 0:02:19.9]}
19... d4 {[%clk 0:01:29.1]} 20. Rxg7 {[%clk 0:02:18]} 20... Kxg7 {[%clk
0:01:20.4]} 21. Rg3+ {[%clk 0:02:16.8]} 21... Ng6 {[%clk 0:01:20.4]} 22. Bxg6
{[%clk 0:02:15]} 22... Rh8 {[%clk 0:01:08.4]} 23. Be4+ {[%clk 0:01:51.9]} 23...
Kf8 {[%clk 0:01:07.4]} 24. Rf3 {[%clk 0:01:42.8]} 24... Bxe4 {[%clk 0:00:39.5]}
25. Nxe4 {[%clk 0:01:40.2]} 25... dxc3 {[%clk 0:00:34.3]} 26. Rxc3 {[%clk
0:01:26.8]} 26... Qd7 {[%clk 0:00:29.6]} 27. Nd6 {[%clk 0:01:17.7]} 27... Ra7
{[%clk 0:00:19.2]} 28. Rc8+ {[%clk 0:01:11.3]} 28... Kg7 {[%clk 0:00:09.5]} 29.
Rxh8 {[%clk 0:00:53.2]} 29... Kxh8 {[%clk 0:00:09.5]} 30. Qxh6+ {[%clk
0:00:52.2]} 30... Kg8 {[%clk 0:00:09.8]} 31. Qg5+ {[%clk 0:00:50.5]} 31... Kf8
{[%clk 0:00:09.2]} 32. h4 {[%clk 0:00:46]} 32... Rc7 {[%clk 0:00:04.1]} 33. h5
{[%clk 0:00:45.6]} 33... Qe7 {[%clk 0:00:02.3]} 34. Qh6+ {[%clk 0:00:39.1]}
34... Kg8 {[%clk 0:00:02.4]} 35. Qf4 {[%clk 0:00:35.6]} 35... Rc5 {[%clk
0:00:01.6]} 36. h6 {[%clk 0:00:33.4]} 1-0